[Event "8th Amsterdam Summer Open-A 2018"]
[Site "Amsterdam"]
[Date "2018.07.10"]
[Round "4"]
[White "Hoekstra, Peter"]
[Black "Elgersma, Simon"]
[Result "1/2-1/2"]
[ECO "C11"]
[WhiteElo "2031"]
[BlackElo "2263"]
[Annotator "NA"]
[PlyCount "93"]
[EventDate "2018.07.07"]
[EventType "swiss"]
[EventCountry "NED"]
[SourceTitle "playchess.com"]
[Source "ChessBase"]
[SourceQuality "1"]
[TimeControl "40/5400+30:1800+30"]

1. e4 {[%emt 19:38:29]} e6 {[%emt 0:00:17]} 2. d4 {[%emt 0:00:08]} d5 {[%emt 0:00:07]} 3. Nc3 {[%emt 0:00:22]} Nf6 {[%emt 0:00:07]} 4. e5 {[%emt 0:00:44]} Nfd7 {[%emt 0:00:06]} 5. f4 {[%emt 0:00:06]} c5 {[%emt 0:00:05]} 6. Nf3 {[%emt 0:00:05]} Nc6 {[%emt 0:00:06]} 7. Be3 {[%emt 0:00:06]} Be7 {[%emt 0:00:09]} 8. Qd2 {[%emt 0:00:39]} O-O {[%emt 0:00:55]} 9. dxc5 {[%emt 0:00:48]} Qa5 {[%emt 0:00:02]} 10. O-O-O {[%emt 0:01:45]} b6 {[%emt 0:01:00]} 11. Bb5 {[%emt 0:10:08]} Nb4 {[%emt 0:02:54]} 12. a3 {[%emt 0:05:55]} bxc5 {[%emt 0:00:09] LiveBook: 8 Partien} 13. Kb1 {[%emt 0:15:02]} Nb6 $11 {[%emt 0:16:59]} 14. axb4 {[%emt 0:18:10]} cxb4 {[%emt 0:01:49]} 15. Nd4 {[%emt 0:15:34]} bxc3 {[%emt 0:01:42]} 16. Nc6 {[%emt 0:02:08]} Qxb5 {[%emt 0:00:51]} 17. Nxe7+ {[%emt 0:00:09]} Kh8 {[%emt 0:00:09]} 18. Qxc3 {[%emt 0:00:20]} Nc4 {[%emt 0:29:34]} 19. f5 {[%emt 0:05:58]} Rb8 {[%emt 0:14:18]} 20. b3 {[%emt 0:03:18]} Bd7 {[%emt 0:04:17]} 21. f6 {[%emt 0:04:49]} Rfc8 {[%emt 0:04:49]} 22. fxg7+ {[%emt 0:06:46]} Kxg7 {[%emt 0:00:02]} 23. Nxc8 {[%emt 0:06:57]} Rxc8 {[%emt 0:00:21]} 24. Bh6+ {[%emt 0:01:43]} Kxh6 {[%emt 0:02:05]} 25. Qh3+ {[%emt 0:00:10]} Kg7 {[%emt 0:00:23]} 26. Rhf1 {[%emt 0:00:53]} Nd2+ {[%emt 0:00:38]} 27. Rxd2 {[%emt 0:00:17]} Qxf1+ {[%emt 0:00:02]} 28. Kb2 {[%emt 0:00:06]} Qe1 {[%emt 0:02:03]} 29. Qg4+ {[%emt 0:00:35]} Kf8 {[%emt 0:01:38]} 30. Qf4 {[%emt 0:00:12]} Ke8 {[%emt 0:05:07]} 31. Qg5 {[%emt 0:01:08]} Qe4 {[%emt 0:01:32]} 32. Qg8+ {[%emt 0:00:23]} Ke7 33. Qg5+ {[%emt 0:00:11]} Kf8 {[%emt 0:00:26]} 34. Rd3 {[%emt 0:00:49]} Qg6 {[%emt 0:00:14]} 35. Qh4 {[%emt 0:00:16]} Ke8 {[%emt 0:03:47]} 36. Rc3 {[%emt 0:01:15]} Rxc3 {[%emt 0:02:13]} 37. Kxc3 {[%emt 0:00:02]} Qxg2 {[%emt 0:00:59]} 38. Qxh7 {[%emt 0:00:11]} Qg5 {[%emt 0:01:54]} 39. Qh8+ {[%emt 0:00:12]} Ke7 {[%emt 0:00:05]} 40. h4 {[%emt 0:00:05]} d4+ {[%emt 0:03:50]} 41. Kb2 {[%emt 0:04:07]} Qf4 {[%emt 0:13:43]} 42. h5 {[%emt 0:06:59]} Qf2 {[%emt 0:04:26]} 43. Qb8 {[%emt 0:03:59]} Qh2 {[%emt 0:04:11]} 44. Qd6+ {[%emt 0:00:19]} Ke8 45. Qb8+ {[%emt 0:00:06]} Ke7 {[%emt 0:00:01]} 46. Qd6+ {[%emt 0:00:11]} Ke8 {[%emt 0:00:02]} 47. Qb8+ {[%emt 0:00:06]} 1/2-1/2

[Event "8th Amsterdam Summer Open-A 2018"]
[Site "Amsterdam"]
[Date "2018.07.13"]
[Round "7"]
[White "Bosboom, Manuel"]
[Black "Hernandez Iglesias, Francisco"]
[Result "1-0"]
[ECO "D43"]
[WhiteElo "2403"]
[BlackElo "2047"]
[Annotator "NA"]
[PlyCount "99"]
[EventDate "2018.07.07"]
[EventType "swiss"]
[EventCountry "NED"]
[SourceTitle "playchess.com"]
[Source "ChessBase"]
[SourceQuality "1"]
[TimeControl "40/5400+30:1800+30"]

1. Nf3 {[%emt 0:00:00]} d5 {[%emt 0:00:00]} 2. d4 {[%emt 0:00:43]} Nf6 {[%emt 0:00:00]} 3. c4 {[%emt 0:00:08]} c6 {[%emt 0:00:00]} 4. Nc3 {[%emt 0:00:10]} e6 {[%emt 0:00:00]} 5. Qc2 {[%emt 0:02:09]} dxc4 {[%emt 0:01:58]} 6. e4 {[%emt 0:03:49]} b5 {[%emt 0:04:24]} 7. Bf4 {[%emt 0:06:00] LiveBook: 3 Games} Bb7 {[%emt 0:02:24]} 8. O-O-O {[%emt 0:02:44]} ({Better is} 8. Be2 $15) 8... Be7 {[%emt 0:09:38]} 9. Kb1 {[%emt 0:11:23]} a5 {[%emt 0:05:58]} 10. h4 {[%emt 0:09:12]} a4 {[%emt 0:03:16]} 11. h5 $17 {[%emt 0:05:08]} ({Lieber} 11. a3) 11... a3 {[%emt 0:04:44]} 12. h6 {[%emt 0:01:28]} g6 {[%emt 0:00:24]} 13. d5 {[%emt 0:01:59]} exd5 {[%emt 0:01:19]} 14. Rh3 {[%emt 0:26:12]} O-O {[%emt 0:11:33]} 15. e5 {[%emt 0:04:30]} Nfd7 {[%emt 0:02:36]} 16. Rg3 {[%emt 0:03:30]} Nc5 {[%emt 0:04:25]} 17. Nd4 {[%emt 0:02:33]} Bc8 {[%emt 0:04:58]} 18. Ndxb5 {[%emt 0:07:15]} Bh4 {[%emt 0:08:26]} 19. Nd6 {[%emt 0:01:51]} Bxg3 {[%emt 0:03:50]} 20. fxg3 {[%emt 0:00:49]} axb2 {[%emt 0:08:10]} 21. e6 {[%emt 0:02:47]} Nxe6 {[%emt 0:07:51]} 22. Nxc4 {[%emt 0:05:12]} Nxf4 {[%emt 0:02:10]} 23. gxf4 {[%emt 0:01:11]} Qf6 {[%emt 0:00:32]} 24. Rxd5 {[%emt 0:00:17]} Qxf4 {[%emt 0:05:54]} 25. Rd1 {[%emt 0:00:18]} Bf5 {[%emt 0:00:47]} 26. Bd3 {[%emt 0:00:01]} Qxc4 {[%emt 0:01:10]} 27. Bxc4 {[%emt 0:00:39]} Bxc2+ {[%emt 0:00:06]} 28. Kxc2 {[%emt 0:00:01]} Ra5 {[%emt 0:01:31]} 29. Ne4 {[%emt 0:00:16]} Ra7 {[%emt 0:01:59]} 30. Kxb2 {[%emt 0:00:32]} Nd7 {[%emt 0:00:29]} 31. Rxd7 {[%emt 0:00:42]} Rxd7 {[%emt 0:00:23]} 32. Nf6+ {[%emt 0:00:00]} Kh8 {[%emt 0:00:14]} 33. Nxd7 {[%emt 0:00:00]} Rd8 {[%emt 0:00:43]} 34. Ne5 {[%emt 0:00:18]} Rd2+ {[%emt 0:00:07]} 35. Kc3 {[%emt 0:00:08]} Rxg2 {[%emt 0:00:20]} 36. a4 {[%emt 0:00:13]} Kg8 {[%emt 0:02:31]} 37. a5 {[%emt 0:00:12]} Rg5 {[%emt 0:01:08]} 38. Kd4 {[%emt 0:01:45]} c5+ {[%emt 0:01:24]} 39. Kd5 {[%emt 0:01:25]} Kf8 {[%emt 0:00:46]} 40. Kd6 {[%emt 0:00:11]} f5 {[%emt 0:01:10]} 41. Nd7+ {[%emt 0:31:15]} Ke8 {[%emt 0:30:21]} 42. a6 {[%emt 0:00:32]} Rg1 {[%emt 0:00:32]} 43. Nf6+ {[%emt 0:00:40]} Kd8 {[%emt 0:00:23]} 44. Nxh7 {[%emt 0:01:11]} Kc8 {[%emt 0:00:47]} 45. Kc6 {[%emt 0:00:00]} Kb8 {[%emt 0:00:00]} 46. Kb6 {[%emt 0:00:00]} Rd1 {[%emt 0:00:00]} 47. a7+ {[%emt 0:00:00]} Ka8 {[%emt 0:00:00]} 48. Ng5 {[%emt 0:00:00]} Rd6+ {[%emt 0:00:00]} 49. Kc7 {[%emt 0:00:00]} Rd4 {[%emt 0:00:00]} 50. h7 {[%emt 0:00:00]} 1-0

[Event "8th Amsterdam Summer Open-A 2018"]
[Site "Amsterdam"]
[Date "2018.07.13"]
[Round "7"]
[White "Brink, Barry"]
[Black "Hildenbrand, Peter"]
[Result "0-1"]
[ECO "E40"]
[WhiteElo "2342"]
[BlackElo "2226"]
[Annotator "NA"]
[PlyCount "84"]
[EventDate "2018.07.07"]
[EventType "swiss"]
[EventCountry "NED"]
[SourceTitle "playchess.com"]
[Source "ChessBase"]
[SourceQuality "1"]
[TimeControl "40/5400+30:1800+30"]

1. d4 {[%emt 0:00:00]} d5 {[%emt 0:00:00]} 2. c4 {[%emt 0:00:00]} e6 {[%emt 0:00:00]} 3. Nc3 {[%emt 0:00:00]} Bb4 {[%emt 0:00:00]} 4. e3 {[%emt 0:02:09]} Nf6 {[%emt 0:00:43]} 5. Bd3 {[%emt 0:01:03]} e5 {[%emt 0:01:17]} 6. a3 {[%emt 0:16:32]} exd4 {[%emt 0:11:36]} 7. axb4 {[%emt 0:09:44]} dxc3 {[%emt 0:00:07]} 8. bxc3 {[%emt 0:00:13]} dxc4 {[%emt 0:00:07]} 9. Bxc4 {[%emt 0:00:18]} Qxd1+ {[%emt 0:00:06]} 10. Kxd1 {[%emt 0:00:11]} Nc6 {[%emt 0:03:17]} 11. Nf3 {[%emt 0:13:58]} Bg4 $14 {[%emt 0:06:43]} 12. h3 {[%emt 0:09:17]} Bh5 {[%emt 0:10:33]} 13. Kc2 {[%emt 0:06:48]} O-O {[%emt 0:07:54]} 14. Bd2 {[%emt 0:10:00]} Ne4 {[%emt 0:02:30]} 15. Be1 {[%emt 0:00:14]} Nd6 {[%emt 0:00:21]} 16. Be2 {[%emt 0:02:39]} Ne5 {[%emt 0:03:26]} 17. Bd2 {[%emt 0:15:34]} Nxf3 {[%emt 0:02:10]} 18. gxf3 {[%emt 0:00:28]} Ne4 {[%emt 0:01:17]} 19. Rag1 {[%emt 0:05:34]} Nxd2 {[%emt 0:02:05]} 20. Kxd2 {[%emt 0:00:02]} Rad8+ {[%emt 0:02:19]} 21. Kc1 {[%emt 0:00:27]} Rd6 {[%emt 0:00:40]} 22. Rg5 {[%emt 0:00:44]} Bg6 {[%emt 0:00:07]} 23. Rd1 {[%emt 0:01:41]} Rfd8 {[%emt 0:00:15]} 24. Rxd6 {[%emt 0:00:10]} Rxd6 {[%emt 0:00:03]} 25. Rc5 {[%emt 0:00:30]} c6 {[%emt 0:01:28]} 26. f4 {[%emt 0:02:34]} Bd3 {[%emt 0:01:48]} 27. Bxd3 {[%emt 0:01:38]} Rxd3 {[%emt 0:00:03]} 28. Ra5 {[%emt 0:00:55]} a6 {[%emt 0:00:53]} 29. Kc2 {[%emt 0:00:02]} Rd6 {[%emt 0:00:08]} 30. h4 {[%emt 0:00:46]} Kf8 {[%emt 0:00:39]} 31. h5 {[%emt 0:00:23]} Rd5 {[%emt 0:12:20]} 32. e4 {[%emt 0:00:25]} Rd6 {[%emt 0:14:19]} 33. Rg5 {[%emt 0:00:03]} Rf6 {[%emt 0:01:04]} 34. Rg4 {[%emt 0:00:10]} Rh6 {[%emt 0:02:12]} 35. Rg5 {[%emt 0:00:03]} g6 {[%emt 0:05:26]} 36. hxg6 {[%emt 0:00:08]} hxg6 {[%emt 0:00:06]} 37. f5 {[%emt 0:01:17]} Rh5 {[%emt 0:05:11]} 38. f4 {[%emt 0:00:57]} Ke7 {[%emt 0:00:11]} 39. fxg6 {[%emt 0:01:05]} Rxg5 {[%emt 0:00:13]} 40. fxg5 {[%emt 0:00:20]} fxg6 {[%emt 0:00:07]} 41. c4 {[%emt 0:11:14]} b6 {[%emt 0:01:34]} 42. Kd3 {[%emt 0:04:57]} c5 {[%emt 0:01:10]} 0-1

[Event "8th Amsterdam Summer Open-A 2018"]
[Site "Amsterdam"]
[Date "2018.07.13"]
[Round "7"]
[White "De Boer, Eelke"]
[Black "Prior, Stephen C V"]
[Result "1-0"]
[ECO "B01"]
[WhiteElo "2317"]
[BlackElo "2025"]
[Annotator "NA"]
[PlyCount "51"]
[EventDate "2018.07.07"]
[EventType "swiss"]
[EventCountry "NED"]
[SourceTitle "playchess.com"]
[Source "ChessBase"]
[SourceQuality "1"]
[TimeControl "40/5400+30:1800+30"]

1. e4 {[%emt 20:42:27]} d5 {[%emt 0:00:05]} 2. exd5 {[%emt 0:00:11]} Qxd5 {[%emt 0:00:05]} 3. Nc3 {[%emt 0:00:08]} Qd6 {[%emt 0:00:03]} 4. d4 {[%emt 0:00:12]} g6 {[%emt 0:00:10] LiveBook: 71 Partien} 5. Nb5 {[%emt 0:03:53]} Qb6 {[%emt 0:01:05]} 6. c4 {[%emt 0:00:42]} c6 {[%emt 0:01:35]} 7. Nc3 {[%emt 0:00:06]} Bg7 {[%emt 0:00:58]} 8. Nf3 {[%emt 0:00:34]} Bg4 {[%emt 0:01:17]} 9. d5 {[%emt 0:16:55]} Nf6 {[%emt 0:03:20]} 10. h3 {[%emt 0:10:50]} Bxf3 {[%emt 0:03:21]} 11. Qxf3 {[%emt 0:04:27]} O-O {[%emt 0:00:21]} 12. g3 {[%emt 0:03:10]} Rd8 {[%emt 0:08:11]} 13. Bg2 {[%emt 0:01:38]} cxd5 {[%emt 0:04:36]} 14. cxd5 $11 {[%emt 0:00:24]} Na6 {[%emt 0:08:06]} 15. O-O {[%emt 0:04:40]} Nb4 {[%emt 0:03:15]} 16. Be3 {[%emt 0:03:04]} Qa6 {[%emt 0:05:28]} 17. Rad1 {[%emt 0:02:17]} Ne8 {[%emt 0:07:35]} 18. Bc5 {[%emt 0:06:59]} Nxa2 {[%emt 0:03:09]} 19. Nxa2 {[%emt 0:10:10]} Qxa2 {[%emt 0:00:17]} 20. Bxe7 {[%emt 0:00:07]} Rd7 {[%emt 0:00:33]} 21. d6 {[%emt 0:00:54]} Qa6 {[%emt 0:02:28]} 22. Qg4 {[%emt 0:02:43]} f5 {[%emt 0:01:36]} 23. Qb4 {[%emt 0:00:44]} Nf6 {[%emt 0:05:34]} 24. Qb3+ {[%emt 0:01:05]} Kh8 {[%emt 0:00:07]} 25. Bxf6 {[%emt 0:00:10]} Bxf6 {[%emt 0:05:46]} 26. Qe6 {[%emt 0:00:06]} 1-0

[Event "8th Amsterdam Summer Open-A 2018"]
[Site "Amsterdam"]
[Date "2018.07.13"]
[Round "7"]
[White "Elgersma, Simon"]
[Black "Mesman, Edwyn"]
[Result "0-1"]
[ECO "B92"]
[WhiteElo "2263"]
[BlackElo "2100"]
[Annotator "NA"]
[PlyCount "60"]
[EventDate "2018.07.07"]
[EventType "swiss"]
[EventCountry "NED"]
[SourceTitle "playchess.com"]
[Source "ChessBase"]
[SourceQuality "1"]
[TimeControl "40/5400+30:1800+30"]

1. e4 {[%emt 0:14:53]} c5 {[%emt 0:01:37]} 2. Nf3 {[%emt 0:00:00]} d6 {[%emt 0:00:23]} 3. d4 {[%emt 0:00:00]} cxd4 {[%emt 0:00:06]} 4. Nxd4 {[%emt 0:00:00]} Nf6 {[%emt 0:00:10]} 5. Nc3 {[%emt 0:00:00]} a6 {[%emt 0:00:04]} 6. Be2 {[%emt 0:00:00]} e5 {[%emt 0:01:24]} 7. Nf3 {[%emt 0:00:00]} Be7 {[%emt 0:00:34]} 8. Bg5 {[%emt 0:00:00]} Be6 {[%emt 0:06:00]} 9. Bxf6 {[%emt 0:00:00]} Bxf6 {[%emt 0:01:17] LiveBook: 37 Games} 10. O-O {[%emt 0:00:00]} O-O {[%emt 0:06:05]} 11. a4 {[%emt 0:00:00]} Be7 {[%emt 0:02:51]} 12. Nd5 {[%emt 0:03:55]} Nd7 $11 {[%emt 0:02:13]} 13. Bc4 {[%emt 0:08:57]} Nb6 {[%emt 0:13:14]} 14. Nxb6 {[%emt 0:08:34]} Qxb6 {[%emt 0:00:31]} 15. Bxe6 {[%emt 0:00:30]} fxe6 {[%emt 0:00:13]} 16. Qd3 {[%emt 0:10:26]} Rf4 {[%emt 0:04:06]} 17. c4 {[%emt 0:06:56]} Raf8 {[%emt 0:04:59]} 18. a5 {[%emt 0:08:31]} Qc5 {[%emt 0:10:19]} 19. b3 {[%emt 0:09:00]} Bd8 {[%emt 0:04:18]} 20. Rfd1 {[%emt 0:01:56]} Bc7 {[%emt 0:01:43]} 21. Ra2 {[%emt 0:02:10]} h6 {[%emt 0:01:31]} 22. h3 {[%emt 0:08:00]} R8f7 {[%emt 0:07:49]} 23. Ra4 {[%emt 0:05:44]} g5 {[%emt 0:05:13]} 24. b4 {[%emt 0:02:55]} Qc6 {[%emt 0:00:34]} 25. b5 {[%emt 0:00:02]} Qxe4 {[%emt 0:01:15]} 26. Qxe4 {[%emt 0:00:09]} Rxe4 {[%emt 0:00:09]} 27. b6 {[%emt 0:00:02]} Bb8 {[%emt 0:01:46]} 28. Ra3 {[%emt 0:00:46]} Rxc4 {[%emt 0:06:53]} 29. Rad3 {[%emt 0:01:43]} d5 {[%emt 0:01:37]} 30. Re3 {[%emt 0:01:26]} e4 {[%emt 0:02:33]} 0-1

[Event "8th Amsterdam Summer Open-A 2018"]
[Site "Amsterdam"]
[Date "2018.07.13"]
[Round "7"]
[White "Kokje, Joris"]
[Black "Van Baar, Esper"]
[Result "1/2-1/2"]
[ECO "A21"]
[WhiteElo "2242"]
[BlackElo "2252"]
[Annotator "NA"]
[PlyCount "107"]
[EventDate "2018.07.07"]
[EventType "swiss"]
[EventCountry "NED"]
[SourceTitle "playchess.com"]
[Source "ChessBase"]
[SourceQuality "1"]
[TimeControl "40/5400+30:1800+30"]

1. d4 {[%emt 0:00:00]} d6 {[%emt 0:00:00]} 2. c4 {[%emt 0:00:00]} e5 {[%emt 0:00:00]} 3. Nc3 {[%emt 0:00:00]} exd4 {[%emt 0:00:00]} 4. Qxd4 {[%emt 0:00:00]} Nc6 {[%emt 0:00:38]} 5. Qd2 {[%emt 0:00:03]} Nf6 {[%emt 0:00:57]} 6. b3 {[%emt 0:00:23]} a5 {[%emt 0:01:42]} 7. a3 {[%emt 0:12:20]} g6 {[%emt 0:04:18]} 8. Bb2 {[%emt 0:01:45]} Bg7 {[%emt 0:04:40]} 9. g3 {[%emt 0:00:40]} (9. Nf3 $11 {remains equal.}) 9... O-O {[%emt 0:01:35]} 10. Bg2 {[%emt 0:01:18]} Re8 {[%emt 0:09:15]} 11. Nh3 {[%emt 0:05:11] [#]} (11. a4 $17) 11... Bf5 $11 {[%emt 0:09:35]} (11... a4 $1 $19 {[%mdl 512]} 12. Nxa4 (12. bxa4 Ne5) 12... Bxh3 13. Bxh3 Ne4) 12. Nf4 {[%emt 0:06:47]} Nd7 {[%emt 0:09:24]} 13. Nb5 {[%emt 0:07:18]} Nc5 {[%emt 0:04:09]} 14. Bxg7 {[%emt 0:00:41]} Kxg7 {[%emt 0:00:12]} 15. Qb2+ {[%emt 0:02:38]} f6 {[%emt 0:01:22]} 16. O-O {[%emt 0:00:30]} Na6 {[%emt 0:13:44]} 17. Rad1 {[%emt 0:07:29]} Rc8 {[%emt 0:02:06]} 18. Bxc6 {[%emt 0:08:52]} bxc6 {[%emt 0:00:04]} 19. Na7 {[%emt 0:00:14]} Ra8 {[%emt 0:01:23]} 20. Nxc6 {[%emt 0:00:08]} Qd7 {[%emt 0:00:12]} 21. Nd4 {[%emt 0:00:37]} Be4 {[%emt 0:00:53]} 22. f3 {[%emt 0:01:46]} Bb7 {[%emt 0:00:03]} 23. e4 {[%emt 0:01:03]} Qe7 {[%emt 0:03:25]} 24. Nd5 {[%emt 0:08:03]} Qf7 {[%emt 0:05:07]} 25. h4 {[%emt 0:03:14]} c6 {[%emt 0:01:39]} 26. Nf4 {[%emt 0:03:48]} Rab8 {[%emt 0:00:53]} 27. Qc3 {[%emt 0:00:55]} Nc5 {[%emt 0:04:27]} 28. h5 {[%emt 0:04:31]} Nd7 {[%emt 0:02:23]} 29. Kg2 {[%emt 0:01:26]} Ne5 {[%emt 0:00:17]} 30. Rh1 {[%emt 0:00:33]} Bc8 {[%emt 0:09:57]} 31. hxg6 {[%emt 0:04:10]} hxg6 {[%emt 0:00:07]} 32. Rh2 {[%emt 0:01:35]} Rh8 {[%emt 0:01:21]} 33. Rxh8 {[%emt 0:00:14]} Kxh8 {[%emt 0:00:01]} 34. Rh1+ {[%emt 0:00:08]} Kg7 {[%emt 0:01:02]} 35. Qxa5 {[%emt 0:01:37]} g5 {[%emt 0:00:41]} 36. Nh5+ {[%emt 0:01:06]} Kg6 {[%emt 0:00:04]} 37. f4 {[%emt 0:00:47]} gxf4 {[%emt 0:01:26]} 38. Nxf4+ {[%emt 0:01:15]} Kg7 {[%emt 0:00:01]} 39. Nf5+ {[%emt 0:02:47]} Bxf5 {[%emt 0:00:33]} 40. exf5 {[%emt 0:00:07]} Qb7 {[%emt 0:05:32]} 41. c5 {[%emt 0:38:45]} dxc5 {[%emt 0:32:16]} 42. Qxc5 {[%emt 0:00:00]} Qd7 {[%emt 0:00:00]} 43. Qd4 {[%emt 0:00:00]} Qxd4 {[%emt 0:00:00]} 44. Ne6+ {[%emt 0:00:00]} Kf7 {[%emt 0:00:00]} 45. Nxd4 {[%emt 0:00:00]} c5 {[%emt 0:00:00]} 46. Ne6 {[%emt 0:00:00]} Rxb3 {[%emt 0:00:00]} 47. Nxc5 {[%emt 0:00:00]} Rxa3 {[%emt 0:00:00]} 48. Rh7+ {[%emt 0:00:00]} Kg8 {[%emt 0:00:00]} 49. Re7 {[%emt 0:00:00]} Ng4 {[%emt 0:00:00]} 50. Re6 {[%emt 0:02:26]} Ne3+ {[%emt 0:00:00]} 51. Kh3 {[%emt 0:00:11]} Nxf5 {[%emt 0:00:00]} 52. Ne4 {[%emt 0:00:07]} Kg7 {[%emt 0:00:42]} 53. Kh2 {[%emt 0:02:34]} Re3 {[%emt 0:03:24]} 54. Nc5 {[%emt 0:02:44]} 1/2-1/2

[Event "8th Amsterdam Summer Open-A 2018"]
[Site "Amsterdam"]
[Date "2018.07.13"]
[Round "7"]
[White "Floor, Dirk"]
[Black "Pham, Khoi"]
[Result "1/2-1/2"]
[ECO "E69"]
[WhiteElo "2196"]
[BlackElo "2037"]
[Annotator "NA"]
[PlyCount "189"]
[EventDate "2018.07.07"]
[EventType "swiss"]
[EventCountry "NED"]
[SourceTitle "playchess.com"]
[Source "ChessBase"]
[SourceQuality "1"]
[TimeControl "40/5400+30:1800+30"]

1. Nf3 {[%emt 0:00:00]} d6 {[%emt 0:00:00]} 2. d4 {[%emt 0:00:15]} Nf6 {[%emt 0:00:00]} 3. g3 {[%emt 0:00:12]} g6 {[%emt 0:00:03]} 4. Bg2 {[%emt 0:00:10]} Bg7 {[%emt 0:00:06]} 5. O-O {[%emt 0:00:16]} O-O {[%emt 0:00:11]} 6. c4 {[%emt 0:00:05]} Nbd7 {[%emt 0:00:08]} 7. Nc3 {[%emt 0:00:12]} e5 {[%emt 0:00:04]} 8. e4 {[%emt 0:00:09]} c6 {[%emt 0:00:06]} 9. h3 {[%emt 0:00:12]} Re8 {[%emt 0:00:15]} 10. Be3 {[%emt 0:00:19]} a5 {[%emt 0:00:14]} 11. Qc2 {[%emt 0:02:50]} exd4 {[%emt 0:01:02]} 12. Nxd4 {[%emt 0:01:03]} Nc5 {[%emt 0:00:26]} 13. Rad1 {[%emt 0:02:17]} Nfd7 {[%emt 0:00:40]} 14. b3 {[%emt 0:01:15]} h5 {[%emt 0:07:40]} 15. Rd2 {[%emt 0:11:49]} h4 {[%emt 0:04:15]} 16. g4 {[%emt 0:00:15]} Qb6 {[%emt 0:06:58]} 17. Nde2 {[%emt 0:08:00]} Qb4 {[%emt 0:02:54]} 18. Rfd1 {[%emt 0:09:16]} a4 $14 {[%emt 0:05:26]} 19. Rxd6 {[%emt 0:04:40]} axb3 {[%emt 0:04:01]} 20. axb3 {[%emt 0:00:16]} Ra3 {[%emt 0:25:52]} 21. Bxc5 {[%emt 0:08:40]} Nxc5 {[%emt 0:01:44]} 22. Rd8 {[%emt 0:00:27]} Kf8 {[%emt 0:02:45]} 23. Rxe8+ {[%emt 0:05:53]} Kxe8 {[%emt 0:01:40]} 24. Qd2 {[%emt 0:00:54]} Bd7 {[%emt 0:00:14]} 25. Qd6 {[%emt 0:02:52]} Rxb3 {[%emt 0:07:42]} 26. Qb8+ {[%emt 0:02:42]} Ke7 {[%emt 0:00:59]} 27. Qd6+ {[%emt 0:00:55]} Ke8 {[%emt 0:00:06]} 28. e5 {[%emt 0:06:09]} Bf8 {[%emt 0:05:49]} 29. Qb8+ {[%emt 0:01:52]} Ke7 {[%emt 0:02:46]} 30. Qd6+ {[%emt 0:01:08]} Ke8 {[%emt 0:00:05]} 31. Qb8+ {[%emt 0:00:06]} Ke7 {[%emt 0:00:05]} 32. Nd5+ {[%emt 0:01:01]} cxd5 {[%emt 0:00:54]} 33. cxd5 {[%emt 0:02:56]} Rd3 {[%emt 0:13:38]} 34. Qd6+ {[%emt 0:04:38]} Ke8 {[%emt 0:00:11]} 35. Qb8+ {[%emt 0:00:07]} Ke7 {[%emt 0:00:03]} 36. d6+ {[%emt 0:05:19]} Ke6 {[%emt 0:00:57]} 37. Rxd3 {[%emt 0:00:33]} Nxd3 {[%emt 0:01:14]} 38. Qxf8 {[%emt 0:00:31]} Kxe5 {[%emt 0:01:39]} 39. Qe7+ {[%emt 0:05:21]} Be6 {[%emt 0:00:14]} 40. Qxh4 {[%emt 0:04:17]} Qe1+ {[%emt 0:02:53]} 41. Bf1 {[%emt 0:30:18]} Qd2 {[%emt 0:13:03]} 42. Qg3+ {[%emt 0:00:00]} Kf6 {[%emt 0:03:13]} 43. Qf3+ {[%emt 0:00:00]} Kg7 {[%emt 0:00:16]} 44. Qxb7 {[%emt 0:00:00]} Ne5 {[%emt 0:00:37]} 45. Qe4 {[%emt 0:00:00]} Qxd6 {[%emt 0:00:48]} 46. Bg2 {[%emt 0:00:00]} Bd7 {[%emt 0:04:55]} 47. f4 {[%emt 0:00:00]} Nd3 {[%emt 0:02:38]} 48. Qe3 {[%emt 0:00:00]} Nc5 {[%emt 0:05:07]} 49. Bf3 {[%emt 0:00:00]} Ne6 {[%emt 0:01:31]} 50. h4 {[%emt 0:00:00]} Bb5 {[%emt 0:01:08]} 51. Nc3 {[%emt 0:00:00]} Bc4 {[%emt 0:00:43]} 52. Qe5+ {[%emt 0:00:00]} Qxe5 {[%emt 0:00:15]} 53. fxe5 {[%emt 0:00:00]} f6 {[%emt 0:00:04]} 54. exf6+ {[%emt 0:00:00]} Kxf6 {[%emt 0:00:08]} 55. Kf2 {[%emt 0:00:50]} Ke5 {[%emt 0:02:05]} 56. Ke3 {[%emt 0:00:46]} Nf4 {[%emt 0:00:46]} 57. Be4 {[%emt 0:00:46]} Be6 {[%emt 0:01:01]} 58. Kf3 {[%emt 0:02:22]} Bc4 {[%emt 0:00:53]} 59. g5 {[%emt 0:00:48]} Bf7 {[%emt 0:00:59]} 60. Ke3 {[%emt 0:01:19]} Ne6 {[%emt 0:00:31]} 61. Ne2 {[%emt 0:01:09]} Ng7 {[%emt 0:01:26]} 62. Nc1 {[%emt 0:01:04]} Nf5+ {[%emt 0:00:31]} 63. Bxf5 {[%emt 0:00:10]} Kxf5 {[%emt 0:00:14]} 64. Nd3 {[%emt 0:00:21]} Bd5 {[%emt 0:01:04]} 65. Nf2 {[%emt 0:00:48]} Bb7 {[%emt 0:00:42]} 66. Kd4 {[%emt 0:01:06]} Kf4 {[%emt 0:00:29]} 67. Nd3+ {[%emt 0:00:44]} Kf5 {[%emt 0:01:16]} 68. Ne5 {[%emt 0:00:28]} Bg2 {[%emt 0:00:34]} 69. Nc4 {[%emt 0:00:30]} Bf3 {[%emt 0:00:36]} 70. Nd6+ {[%emt 0:00:30]} Ke6 {[%emt 0:00:46]} 71. Ne8 {[%emt 0:00:14]} Bg4 {[%emt 0:00:23]} 72. Ke4 {[%emt 0:00:51]} Ke7 {[%emt 0:00:40]} 73. Nf6 {[%emt 0:00:14]} Bf5+ {[%emt 0:00:04]} 74. Ke5 {[%emt 0:00:09]} Bb1 {[%emt 0:00:19]} 75. Ng8+ {[%emt 0:01:21]} Kf7 {[%emt 0:00:14]} 76. Nh6+ {[%emt 0:00:10]} Ke7 {[%emt 0:00:08]} 77. Ng4 {[%emt 0:00:24]} Bc2 {[%emt 0:00:12]} 78. Ne3 {[%emt 0:00:15]} Bb3 {[%emt 0:00:38]} 79. Ng2 {[%emt 0:02:23]} Bc2 {[%emt 0:00:16]} 80. Nf4 {[%emt 0:00:11]} Bb1 {[%emt 0:00:45]} 81. Nd5+ {[%emt 0:00:06]} Kf7 {[%emt 0:00:27]} 82. Kd6 {[%emt 0:00:06]} Bd3 {[%emt 0:00:33]} 83. Nb4 {[%emt 0:00:16]} Bb5 {[%emt 0:00:36]} 84. Nd5 {[%emt 0:00:20]} Bd3 {[%emt 0:00:15]} 85. Nf6 {[%emt 0:00:21]} Bf5 {[%emt 0:00:53]} 86. Nd7 {[%emt 0:00:09]} Ke8 {[%emt 0:00:49]} 87. Ne5 {[%emt 0:00:48]} Kf8 {[%emt 0:00:14]} 88. Nf3 {[%emt 0:01:53]} Kf7 {[%emt 0:00:16]} 89. Ke5 {[%emt 0:00:38]} Bb1 {[%emt 0:00:19]} 90. Nh2 {[%emt 0:00:40]} Ke7 {[%emt 0:00:28]} 91. Ng4 {[%emt 0:00:49]} Bc2 {[%emt 0:00:23]} 92. Nf6 {[%emt 0:00:56]} Bb1 {[%emt 0:00:47]} 93. h5 {[%emt 0:00:22]} gxh5 {[%emt 0:00:10]} 94. Nxh5 {[%emt 0:00:10]} Kf7 {[%emt 0:00:13]} 95. Nf4 {[%emt 0:00:27]} 1/2-1/2